[Event "Titled Tuesday Blitz March 28 Early 2023"]
[White "sebastianmarinp"]
[Black "Acikel, Mert"]
[BlackFideId "12956465"]
[WhiteElo "2303"]
[BlackElo "2097"]
[Result "1-0"]
[Round "09"]
[TimeControl "180+2"]
[Date "2023.03.28"]
[WhiteClock "0:02:42"]
[BlackClock "0:02:50"]

1. e4 {[%clk 0:03:00]}  e5 {[%clk 0:02:59]} 2. Nf3 {[%clk 0:02:59]}  Nc6 {[%clk 0:03:00]} 3. Bb5 {[%clk 0:02:59]}  a6 {[%clk 0:03:00]} 4. Ba4 {[%clk 0:02:59]}  Nf6 {[%clk 0:03:00]} 5. O-O {[%clk 0:02:59]}  Be7 {[%clk 0:03:00]} 6. Re1 {[%clk 0:02:58]}  b5 {[%clk 0:03:00]} 7. Bb3 {[%clk 0:02:58]}  d6 {[%clk 0:03:01]} 8. c3 {[%clk 0:02:57]}  O-O {[%clk 0:03:00]} 9. h3 {[%clk 0:02:56]}  Nb8 {[%clk 0:03:00]} 10. c4 {[%clk 0:02:46]}  c6 {[%clk 0:02:58]} 11. d4 {[%clk 0:02:44]}  Nbd7 {[%clk 0:02:59]} 12. c5 {[%clk 0:02:42]}  exd4 {[%clk 0:02:50]} 13. cxd6 {[%clk 0:02:42]} 1-0


[Site "https://www.chess.com"]

[Event "Titled Tuesday Blitz March 28 Early 2023"]
[White "Vemparala, Nikash"]
[Black "Cella, Glaucio Dalla Cortt"]
[WhiteFideId "30960967"]
[BlackFideId "2119455"]
[WhiteElo "2023"]
[BlackElo "2011"]
[Result "0-1"]
[Round "09"]
[TimeControl "180+2"]
[Date "2023.03.28"]
[WhiteClock "0:00:02"]
[BlackClock "0:00:15"]

1. e4 {[%clk 0:03:00]}  c5 {[%clk 0:02:34]} 2. Nf3 {[%clk 0:02:59]}  e6 {[%clk 0:02:35]} 3. g3 {[%clk 0:02:59]}  Nc6 {[%clk 0:02:34]} 4. Bg2 {[%clk 0:02:58]}  d5 {[%clk 0:02:35]} 5. exd5 {[%clk 0:02:58]}  exd5 {[%clk 0:02:36]} 6. d4 {[%clk 0:02:58]}  cxd4 {[%clk 0:02:31]} 7. Nxd4 {[%clk 0:02:49]}  Bc5 {[%clk 0:02:29]} 8. Be3 {[%clk 0:02:42]}  Qb6 {[%clk 0:02:26]} 9. Nf5 {[%clk 0:02:00]}  Bxf5 {[%clk 0:02:22]} 10. Qxd5 {[%clk 0:01:44]}  Bxe3 {[%clk 0:02:13]} 11. Qxf5 {[%clk 0:01:37]}  Nge7 {[%clk 0:02:13]} 12. Qf3 {[%clk 0:01:26]}  Nd4 {[%clk 0:02:13]} 13. Qxb7 {[%clk 0:01:13]}  Nxc2+ {[%clk 0:01:41]} 14. Kd1 {[%clk 0:00:59]}  Qd6+ {[%clk 0:01:11]} 15. Kxc2 {[%clk 0:00:54]}  Rb8 {[%clk 0:01:12]} 16. Qe4 {[%clk 0:00:44]}  Qf6 {[%clk 0:01:06]} 17. Qa4+ {[%clk 0:00:11]}  Kf8 {[%clk 0:01:01]} 18. Nc3 {[%clk 0:00:08]}  Qxf2+ {[%clk 0:00:55]} 19. Kd3 {[%clk 0:00:07]}  Qd2+ {[%clk 0:00:56]} 20. Ke4 {[%clk 0:00:07]}  f5+ {[%clk 0:00:38]} 21. Ke5 {[%clk 0:00:06]}  Qxb2 {[%clk 0:00:35]} 22. Qc4 {[%clk 0:00:03]}  Ng6+ {[%clk 0:00:22]} 23. Kxf5 {[%clk 0:00:02]}  Qf2+ {[%clk 0:00:22]} 24. Kg4 {[%clk 0:00:02]}  Ne5+ {[%clk 0:00:15]} 0-1


[Site "https://www.chess.com"]

[Event "Titled Tuesday Blitz March 28 Early 2023"]
[White "Barria Santos, Jose Guilherme"]
[Black "Novikova, Galina"]
[WhiteFideId "1939300"]
[BlackFideId "4157095"]
[WhiteElo "2301"]
[BlackElo "1953"]
[Result "0-1"]
[Round "09"]
[TimeControl "180+2"]
[Date "2023.03.28"]
[WhiteClock "0:00:14"]
[BlackClock "0:00:40"]

1. d4 {[%clk 0:02:55]}  e6 {[%clk 0:03:00]} 2. c4 {[%clk 0:02:55]}  f5 {[%clk 0:02:59]} 3. Nf3 {[%clk 0:02:47]}  Nf6 {[%clk 0:02:58]} 4. Bg5 {[%clk 0:02:44]}  Be7 {[%clk 0:02:59]} 5. e3 {[%clk 0:02:44]}  O-O {[%clk 0:02:58]} 6. Bd3 {[%clk 0:02:43]}  d6 {[%clk 0:02:58]} 7. Nbd2 {[%clk 0:02:40]}  Nc6 {[%clk 0:02:56]} 8. a3 {[%clk 0:02:38]}  e5 {[%clk 0:02:56]} 9. dxe5 {[%clk 0:02:36]}  dxe5 {[%clk 0:02:57]} 10. Bc2 {[%clk 0:02:32]}  Qe8 {[%clk 0:02:56]} 11. Bxf6 {[%clk 0:02:23]}  Bxf6 {[%clk 0:02:56]} 12. e4 {[%clk 0:02:23]}  Nd4 {[%clk 0:02:36]} 13. O-O {[%clk 0:02:16]}  Nxc2 {[%clk 0:02:34]} 14. Qxc2 {[%clk 0:02:17]}  Qg6 {[%clk 0:02:28]} 15. c5 {[%clk 0:02:09]}  f4 {[%clk 0:02:26]} 16. Rfd1 {[%clk 0:02:00]}  Bg4 {[%clk 0:02:25]} 17. Qb3+ {[%clk 0:01:54]}  Kh8 {[%clk 0:02:25]} 18. Qxb7 {[%clk 0:01:54]}  Rab8 {[%clk 0:02:18]} 19. Qxc7 {[%clk 0:01:54]}  Rxb2 {[%clk 0:02:18]} 20. Nxe5 {[%clk 0:01:46]}  Bxe5 {[%clk 0:02:13]} 21. Qxe5 {[%clk 0:01:46]}  Rc2 {[%clk 0:01:54]} 22. f3 {[%clk 0:01:39]}  Bh3 {[%clk 0:01:49]} 23. g3 {[%clk 0:01:27]}  fxg3 {[%clk 0:01:33]} 24. Qxg3 {[%clk 0:01:28]}  Qh5 {[%clk 0:01:27]} 25. Rac1 {[%clk 0:01:18]}  Rxc5 {[%clk 0:01:24]} 26. Rxc5 {[%clk 0:01:16]}  Qxc5+ {[%clk 0:01:24]} 27. Kh1 {[%clk 0:01:09]}  Be6 {[%clk 0:01:06]} 28. Rg1 {[%clk 0:00:57]}  Rg8 {[%clk 0:01:06]} 29. Nf1 {[%clk 0:00:50]}  Qxa3 {[%clk 0:01:05]} 30. Nd2 {[%clk 0:00:36]}  a5 {[%clk 0:00:58]} 31. e5 {[%clk 0:00:33]}  a4 {[%clk 0:00:56]} 32. Ne4 {[%clk 0:00:33]}  Qe7 {[%clk 0:00:47]} 33. Ra1 {[%clk 0:00:30]}  a3 {[%clk 0:00:44]} 34. Nd6 {[%clk 0:00:27]}  a2 {[%clk 0:00:43]} 35. Qg2 {[%clk 0:00:18]}  Rb8 {[%clk 0:00:41]} 36. Ne4 {[%clk 0:00:14]}  Rb1+ {[%clk 0:00:40]} 0-1


[Site "https://www.chess.com"]

[Event "Titled Tuesday Blitz March 28 Early 2023"]
[White "Sanchez, German"]
[Black "Orujov2008"]
[WhiteFideId "4403959"]
[WhiteElo "1816"]
[BlackElo "2279"]
[Result "0-1"]
[Round "09"]
[TimeControl "180+2"]
[Date "2023.03.28"]
[WhiteClock "0:00:03"]
[BlackClock "0:01:21"]

1. e4 {[%clk 0:01:39]}  e5 {[%clk 0:02:59]} 2. d4 {[%clk 0:01:40]}  exd4 {[%clk 0:02:59]} 3. c3 {[%clk 0:01:06]}  dxc3 {[%clk 0:02:56]} 4. Bc4 {[%clk 0:01:06]}  d6 {[%clk 0:02:49]} 5. Qb3 {[%clk 0:01:06]}  Be6 {[%clk 0:02:03]} 6. Bxe6 {[%clk 0:00:49]}  fxe6 {[%clk 0:02:00]} 7. Qxe6+ {[%clk 0:00:49]}  Be7 {[%clk 0:01:55]} 8. Nxc3 {[%clk 0:00:47]}  Nf6 {[%clk 0:01:55]} 9. Bg5 {[%clk 0:00:45]}  Qd7 {[%clk 0:01:51]} 10. Qb3 {[%clk 0:00:45]}  Qc6 {[%clk 0:01:46]} 11. Nf3 {[%clk 0:00:20]}  Nbd7 {[%clk 0:01:45]} 12. O-O {[%clk 0:00:16]}  Nc5 {[%clk 0:01:44]} 13. Qc4 {[%clk 0:00:05]}  O-O-O {[%clk 0:01:29]} 14. Nd4 {[%clk 0:00:02]}  Qb6 {[%clk 0:01:24]} 15. Bxf6 {[%clk 0:00:02]}  Bxf6 {[%clk 0:01:24]} 16. Nd5 {[%clk 0:00:03]}  Qa6 {[%clk 0:01:22]} 17. Nxf6 {[%clk 0:00:03]}  Qxc4 {[%clk 0:01:22]} 18. Ne6 {[%clk 0:00:03]}  Qxe6 {[%clk 0:01:21]} 0-1


[Site "https://www.chess.com"]

[Event "Titled Tuesday Blitz March 28 Early 2023"]
[White "Estremera Panos, Sergio"]
[Black "Semenova, Alina"]
[WhiteFideId "2200864"]
[BlackFideId "24113875"]
[WhiteElo "2253"]
[BlackElo "1833"]
[Result "1-0"]
[Round "09"]
[TimeControl "180+2"]
[Date "2023.03.28"]
[WhiteClock "0:00:55"]
[BlackClock "0:00:08"]

1. d4 {[%clk 0:02:37]}  d5 {[%clk 0:02:59]} 2. c4 {[%clk 0:02:37]}  e6 {[%clk 0:02:59]} 3. Nc3 {[%clk 0:02:38]}  Nf6 {[%clk 0:03:00]} 4. cxd5 {[%clk 0:02:38]}  exd5 {[%clk 0:03:00]} 5. Bg5 {[%clk 0:02:39]}  Be7 {[%clk 0:03:00]} 6. e3 {[%clk 0:02:39]}  O-O {[%clk 0:02:59]} 7. Bd3 {[%clk 0:02:40]}  h6 {[%clk 0:02:59]} 8. Bh4 {[%clk 0:02:39]}  c6 {[%clk 0:02:59]} 9. Qc2 {[%clk 0:02:38]}  Nbd7 {[%clk 0:02:56]} 10. Nf3 {[%clk 0:02:37]}  b6 {[%clk 0:02:54]} 11. O-O {[%clk 0:02:37]}  Bb7 {[%clk 0:02:54]} 12. Rae1 {[%clk 0:02:35]}  c5 {[%clk 0:02:48]} 13. Bg3 {[%clk 0:02:31]}  Re8 {[%clk 0:02:34]} 14. Nb5 {[%clk 0:02:27]}  Ne4 {[%clk 0:02:20]} 15. Bxe4 {[%clk 0:02:18]}  dxe4 {[%clk 0:02:21]} 16. Nd2 {[%clk 0:02:16]}  Bh4 {[%clk 0:02:21]} 17. Bxh4 {[%clk 0:02:11]}  Qxh4 {[%clk 0:02:20]} 18. Nd6 {[%clk 0:02:12]}  Ba6 {[%clk 0:02:01]} 19. Nxe8 {[%clk 0:02:11]}  Bxf1 {[%clk 0:01:59]} 20. Rxf1 {[%clk 0:02:04]}  Rxe8 {[%clk 0:01:59]} 21. d5 {[%clk 0:02:00]}  f5 {[%clk 0:01:51]} 22. Nc4 {[%clk 0:01:59]}  Nf6 {[%clk 0:01:47]} 23. Rd1 {[%clk 0:01:58]}  f4 {[%clk 0:01:28]} 24. exf4 {[%clk 0:01:51]}  Qxf4 {[%clk 0:01:25]} 25. Ne3 {[%clk 0:01:49]}  Nd7 {[%clk 0:01:19]} 26. d6 {[%clk 0:01:47]}  Rf8 {[%clk 0:01:13]} 27. Nd5 {[%clk 0:01:41]}  Qxd6 {[%clk 0:00:55]} 28. Qxe4 {[%clk 0:01:31]}  Qe5 {[%clk 0:00:32]} 29. Ne7+ {[%clk 0:01:25]}  Kf7 {[%clk 0:00:33]} 30. Qb7 {[%clk 0:00:58]}  Rd8 {[%clk 0:00:11]} 31. Nc6 {[%clk 0:00:55]}  Qe2 {[%clk 0:00:11]} 32. Nxd8+ {[%clk 0:00:54]}  Kg8 {[%clk 0:00:08]} 33. Qxd7 {[%clk 0:00:55]} 1-0


[Site "https://www.chess.com"]

[Event "Titled Tuesday Blitz March 28 Early 2023"]
[White "Schut, Han"]
[Black "Prado, Alexandra"]
[WhiteFideId "1005561"]
[BlackFideId "3301346"]
[WhiteElo "2024"]
[BlackElo "1759"]
[Result "1-0"]
[Round "09"]
[TimeControl "180+2"]
[Date "2023.03.28"]
[WhiteClock "0:00:58"]
[BlackClock "0:00:01"]

1. e4 {[%clk 0:03:00]}  c5 {[%clk 0:02:56]} 2. Nf3 {[%clk 0:02:56]}  Nc6 {[%clk 0:02:56]} 3. d4 {[%clk 0:02:46]}  cxd4 {[%clk 0:02:57]} 4. Nxd4 {[%clk 0:02:47]}  g6 {[%clk 0:02:55]} 5. c4 {[%clk 0:02:47]}  Bg7 {[%clk 0:02:48]} 6. Be3 {[%clk 0:02:47]}  Nf6 {[%clk 0:02:47]} 7. Nc3 {[%clk 0:02:44]}  O-O {[%clk 0:02:46]} 8. Be2 {[%clk 0:02:33]}  d6 {[%clk 0:02:35]} 9. O-O {[%clk 0:02:30]}  Bd7 {[%clk 0:02:35]} 10. f3 {[%clk 0:02:30]}  Nxd4 {[%clk 0:02:08]} 11. Bxd4 {[%clk 0:02:29]}  Bc6 {[%clk 0:02:07]} 12. Qd2 {[%clk 0:02:28]}  Nd7 {[%clk 0:01:55]} 13. Be3 {[%clk 0:02:27]}  a5 {[%clk 0:01:34]} 14. b3 {[%clk 0:02:27]}  Nb6 {[%clk 0:01:11]} 15. Rab1 {[%clk 0:02:19]}  f5 {[%clk 0:00:46]} 16. exf5 {[%clk 0:02:19]}  Rxf5 {[%clk 0:00:45]} 17. Rfc1 {[%clk 0:02:13]}  Be5 {[%clk 0:00:26]} 18. Bd3 {[%clk 0:01:57]}  Rh5 {[%clk 0:00:21]} 19. g3 {[%clk 0:01:53]}  Bxf3 {[%clk 0:00:20]} 20. Qf2 {[%clk 0:01:52]}  Bg4 {[%clk 0:00:19]} 21. Bxb6 {[%clk 0:01:52]}  Qd7 {[%clk 0:00:14]} 22. Be3 {[%clk 0:01:41]}  Rf8 {[%clk 0:00:14]} 23. Qd2 {[%clk 0:01:35]}  Bf3 {[%clk 0:00:08]} 24. Be4 {[%clk 0:01:28]}  Qh3 {[%clk 0:00:08]} 25. Bxf3 {[%clk 0:01:14]}  Rxf3 {[%clk 0:00:09]} 26. Bf4 {[%clk 0:01:07]}  Bxf4 {[%clk 0:00:02]} 27. gxf4 {[%clk 0:01:07]}  Qg4+ {[%clk 0:00:02]} 28. Qg2 {[%clk 0:01:03]}  Qxf4 {[%clk 0:00:03]} 29. Nd5 {[%clk 0:01:00]}  Qd4+ {[%clk 0:00:01]} 30. Kh1 {[%clk 0:00:58]} 1-0


[Site "https://www.chess.com"]

[Event "Titled Tuesday Blitz March 28 Early 2023"]
[White "Bashirli, Saadat"]
[Black "Garrido, Denis"]
[WhiteFideId "13429990"]
[BlackFideId "601217"]
[WhiteElo "1408"]
[BlackElo "2271"]
[Result "1-0"]
[Round "09"]
[TimeControl "180+2"]
[Date "2023.03.28"]
[WhiteClock "0:00:07"]
[BlackClock "0:00:08"]

1. e4 {[%clk 0:03:00]}  e5 {[%clk 0:02:57]} 2. Nf3 {[%clk 0:03:00]}  Nc6 {[%clk 0:02:56]} 3. Bc4 {[%clk 0:02:58]}  Nf6 {[%clk 0:02:56]} 4. d3 {[%clk 0:02:57]}  Bc5 {[%clk 0:02:53]} 5. c3 {[%clk 0:02:57]}  a6 {[%clk 0:02:53]} 6. O-O {[%clk 0:02:53]}  Ba7 {[%clk 0:02:52]} 7. Nbd2 {[%clk 0:02:52]}  d6 {[%clk 0:02:52]} 8. Bb3 {[%clk 0:02:51]}  O-O {[%clk 0:02:51]} 9. Re1 {[%clk 0:02:50]}  Ng4 {[%clk 0:02:49]} 10. Re2 {[%clk 0:02:49]}  Kh8 {[%clk 0:02:49]} 11. h3 {[%clk 0:02:48]}  Nh6 {[%clk 0:02:48]} 12. Nf1 {[%clk 0:02:46]}  f5 {[%clk 0:02:48]} 13. Bxh6 {[%clk 0:02:43]}  gxh6 {[%clk 0:02:49]} 14. exf5 {[%clk 0:02:44]}  Bxf5 {[%clk 0:02:49]} 15. Ng3 {[%clk 0:02:44]}  Bxh3 {[%clk 0:02:36]} 16. Nxe5 {[%clk 0:02:30]}  Nxe5 {[%clk 0:02:27]} 17. gxh3 {[%clk 0:02:29]}  Qh4 {[%clk 0:02:26]} 18. Kg2 {[%clk 0:02:24]}  Rf3 {[%clk 0:02:07]} 19. d4 {[%clk 0:02:19]}  Ng6 {[%clk 0:01:53]} 20. Kxf3 {[%clk 0:01:40]}  Rf8+ {[%clk 0:01:36]} 21. Ke3 {[%clk 0:01:27]}  Qf4+ {[%clk 0:01:16]} 22. Kd3 {[%clk 0:01:26]}  c5 {[%clk 0:01:14]} 23. Qd2 {[%clk 0:01:21]}  Qf6 {[%clk 0:01:00]} 24. Kc2 {[%clk 0:01:12]}  cxd4 {[%clk 0:01:01]} 25. Rd1 {[%clk 0:00:59]}  Nf4 {[%clk 0:00:51]} 26. Re4 {[%clk 0:00:39]}  Qg6 {[%clk 0:00:41]} 27. Kc1 {[%clk 0:00:34]}  Nxh3 {[%clk 0:00:35]} 28. cxd4 {[%clk 0:00:27]}  Nxf2 {[%clk 0:00:26]} 29. Rf1 {[%clk 0:00:19]}  Qxg3 {[%clk 0:00:15]} 30. Re3 {[%clk 0:00:19]}  Qg2 {[%clk 0:00:13]} 31. Rfe1 {[%clk 0:00:16]}  Rc8+ {[%clk 0:00:12]} 32. Bc2 {[%clk 0:00:16]}  Qg7 {[%clk 0:00:05]} 33. Qxf2 {[%clk 0:00:14]}  Rf8 {[%clk 0:00:02]} 34. Qxf8+ {[%clk 0:00:10]}  Qxf8 {[%clk 0:00:02]} 35. Re8 {[%clk 0:00:11]}  Kg7 {[%clk 0:00:03]} 36. Rxf8 {[%clk 0:00:11]}  Kxf8 {[%clk 0:00:04]} 37. d5 {[%clk 0:00:11]}  Bd4 {[%clk 0:00:04]} 38. Rf1+ {[%clk 0:00:11]}  Ke7 {[%clk 0:00:04]} 39. Bxh7 {[%clk 0:00:12]}  Be5 {[%clk 0:00:04]} 40. Be4 {[%clk 0:00:12]}  h5 {[%clk 0:00:05]} 41. Rh1 {[%clk 0:00:12]}  Kd7 {[%clk 0:00:04]} 42. Rxh5 {[%clk 0:00:12]}  Kc7 {[%clk 0:00:04]} 43. Rh7+ {[%clk 0:00:12]}  Kb6 {[%clk 0:00:05]} 44. Kc2 {[%clk 0:00:12]}  a5 {[%clk 0:00:06]} 45. b3 {[%clk 0:00:11]}  Kc5 {[%clk 0:00:06]} 46. a3 {[%clk 0:00:11]}  b6 {[%clk 0:00:07]} 47. Rb7 {[%clk 0:00:07]}  b5 {[%clk 0:00:06]} 48. Bd3 {[%clk 0:00:05]}  b4 {[%clk 0:00:05]} 49. axb4+ {[%clk 0:00:06]}  axb4 {[%clk 0:00:06]} 50. Rb5+ {[%clk 0:00:06]}  Kd4 {[%clk 0:00:07]} 51. Rxb4+ {[%clk 0:00:06]}  Kxd5 {[%clk 0:00:08]} 52. Be4+ {[%clk 0:00:06]}  Kc5 {[%clk 0:00:08]} 53. Rc4+ {[%clk 0:00:06]}  Kb5 {[%clk 0:00:08]} 54. Bc6+ {[%clk 0:00:07]}  Kb6 {[%clk 0:00:08]} 55. Ba4 {[%clk 0:00:07]}  Bd4 {[%clk 0:00:08]} 56. Rxd4 {[%clk 0:00:07]} 1-0


[Site "https://www.chess.com"]

[Event "Titled Tuesday Blitz March 28 Early 2023"]
[White "Better_Chess_Faster"]
[Black "Ciuffoletti, Paolo"]
[BlackFideId "807630"]
[WhiteElo "1984"]
[BlackElo "2143"]
[Result "1/2-1/2"]
[Round "09"]
[TimeControl "180+2"]
[Date "2023.03.28"]
[WhiteClock "0:01:15"]
[BlackClock "0:00:05"]

1. c4 {[%clk 0:03:00]}  g6 {[%clk 0:02:58]} 2. g3 {[%clk 0:02:58]}  Bg7 {[%clk 0:02:58]} 3. Bg2 {[%clk 0:02:59]}  d6 {[%clk 0:02:58]} 4. Nc3 {[%clk 0:02:59]}  e5 {[%clk 0:02:58]} 5. e4 {[%clk 0:02:58]}  c6 {[%clk 0:02:53]} 6. Nge2 {[%clk 0:02:57]}  f5 {[%clk 0:02:52]} 7. d3 {[%clk 0:02:55]}  Nf6 {[%clk 0:02:51]} 8. Be3 {[%clk 0:02:53]}  O-O {[%clk 0:02:49]} 9. h3 {[%clk 0:02:53]}  Be6 {[%clk 0:02:48]} 10. exf5 {[%clk 0:02:52]}  gxf5 {[%clk 0:02:46]} 11. Qd2 {[%clk 0:02:49]}  Rf7 {[%clk 0:02:05]} 12. b3 {[%clk 0:02:47]}  Nbd7 {[%clk 0:01:58]} 13. d4 {[%clk 0:02:45]}  Nf8 {[%clk 0:01:43]} 14. d5 {[%clk 0:02:38]}  cxd5 {[%clk 0:01:32]} 15. Nxd5 {[%clk 0:02:33]}  Ng6 {[%clk 0:01:15]} 16. Bg5 {[%clk 0:02:25]}  Kh8 {[%clk 0:00:59]} 17. O-O {[%clk 0:02:24]}  e4 {[%clk 0:00:45]} 18. Nef4 {[%clk 0:02:18]}  Nxf4 {[%clk 0:00:40]} 19. Nxf4 {[%clk 0:02:15]}  Qd7 {[%clk 0:00:36]} 20. Rad1 {[%clk 0:02:12]}  Ne8 {[%clk 0:00:34]} 21. Nd5 {[%clk 0:01:59]}  Bxd5 {[%clk 0:00:23]} 22. Qxd5 {[%clk 0:01:58]}  Rc8 {[%clk 0:00:20]} 23. Bf4 {[%clk 0:01:57]}  Rd8 {[%clk 0:00:16]} 24. Rfe1 {[%clk 0:01:53]}  Bf6 {[%clk 0:00:15]} 25. a4 {[%clk 0:01:40]}  b6 {[%clk 0:00:15]} 26. Be3 {[%clk 0:01:35]}  Nc7 {[%clk 0:00:15]} 27. Qd2 {[%clk 0:01:34]}  Be5 {[%clk 0:00:14]} 28. Bd4 {[%clk 0:01:34]}  Ne6 {[%clk 0:00:12]} 29. Bxe5+ {[%clk 0:01:28]}  dxe5 {[%clk 0:00:11]} 30. Qc3 {[%clk 0:01:26]}  Qxd1 {[%clk 0:00:09]} 31. Qxe5+ {[%clk 0:01:23]}  Kg8 {[%clk 0:00:04]} 32. Rxd1 {[%clk 0:01:21]}  Rxd1+ {[%clk 0:00:04]} 33. Kh2 {[%clk 0:01:22]}  Nd4 {[%clk 0:00:05]} 34. Qe8+ {[%clk 0:01:17]}  Kg7 {[%clk 0:00:04]} 35. Qe5+ {[%clk 0:01:16]}  Kg8 {[%clk 0:00:04]} 36. Qe8+ {[%clk 0:01:15]}  Kg7 {[%clk 0:00:04]} 37. Qe5+ {[%clk 0:01:15]}  Kg8 {[%clk 0:00:05]} 1/2-1/2


[Site "https://www.chess.com"]

[Event "Titled Tuesday Blitz March 28 Early 2023"]
[White "Tarnowska, Aleksandra"]
[Black "Lohani, Sujana"]
[WhiteFideId "1180967"]
[BlackFideId "12311987"]
[WhiteElo "1776"]
[BlackElo "1718"]
[Result "1-0"]
[Round "09"]
[TimeControl "180+2"]
[Date "2023.03.28"]
[WhiteClock "0:00:59"]
[BlackClock "0:00:02"]

1. e4 {[%clk 0:03:00]}  c5 {[%clk 0:01:04]} 2. Nf3 {[%clk 0:02:59]}  g6 {[%clk 0:01:00]} 3. c3 {[%clk 0:02:58]}  Bg7 {[%clk 0:01:01]} 4. d4 {[%clk 0:02:58]}  cxd4 {[%clk 0:01:00]} 5. cxd4 {[%clk 0:02:56]}  d6 {[%clk 0:00:59]} 6. Nc3 {[%clk 0:02:50]}  Nf6 {[%clk 0:00:50]} 7. Bc4 {[%clk 0:02:46]}  O-O {[%clk 0:00:49]} 8. O-O {[%clk 0:02:36]}  Nc6 {[%clk 0:00:42]} 9. d5 {[%clk 0:02:26]}  Na5 {[%clk 0:00:35]} 10. Bd3 {[%clk 0:02:24]}  Bg4 {[%clk 0:00:34]} 11. h3 {[%clk 0:02:21]}  Bxf3 {[%clk 0:00:32]} 12. Qxf3 {[%clk 0:02:22]}  b6 {[%clk 0:00:30]} 13. Bg5 {[%clk 0:02:20]}  Nb7 {[%clk 0:00:29]} 14. Qe3 {[%clk 0:02:14]}  Nc5 {[%clk 0:00:28]} 15. Bc2 {[%clk 0:02:11]}  Rc8 {[%clk 0:00:21]} 16. Rac1 {[%clk 0:02:09]}  Qd7 {[%clk 0:00:20]} 17. Kh1 {[%clk 0:01:56]}  e6 {[%clk 0:00:15]} 18. Bh6 {[%clk 0:01:41]}  exd5 {[%clk 0:00:15]} 19. Bxg7 {[%clk 0:01:36]}  Kxg7 {[%clk 0:00:13]} 20. exd5 {[%clk 0:01:36]}  Rfe8 {[%clk 0:00:12]} 21. Qf3 {[%clk 0:01:34]}  Qe7 {[%clk 0:00:07]} 22. Rfe1 {[%clk 0:01:26]}  Qxe1+ {[%clk 0:00:05]} 23. Rxe1 {[%clk 0:01:27]}  Rxe1+ {[%clk 0:00:05]} 24. Kh2 {[%clk 0:01:28]}  Rce8 {[%clk 0:00:04]} 25. Qg3 {[%clk 0:01:18]}  R8e5 {[%clk 0:00:02]} 26. h4 {[%clk 0:00:59]} 1-0


[Site "https://www.chess.com"]

[Event "Titled Tuesday Blitz March 28 Early 2023"]
[White "Nan, M K Khine Hlyan"]
[Black "Sanchez, Robert"]
[WhiteFideId "13002899"]
[BlackFideId "2034360"]
[WhiteElo "1943"]
[BlackElo "2133"]
[Result "1-0"]
[Round "09"]
[TimeControl "180+2"]
[Date "2023.03.28"]
[WhiteClock "0:02:26"]
[BlackClock "0:02:48"]

1. e4 {[%clk 0:03:00]}  e6 {[%clk 0:02:59]} 2. Nf3 {[%clk 0:03:01]}  c5 {[%clk 0:02:59]} 3. d4 {[%clk 0:03:00]}  cxd4 {[%clk 0:02:59]} 4. Nxd4 {[%clk 0:03:01]}  a6 {[%clk 0:03:00]} 5. Be2 {[%clk 0:03:00]}  Qc7 {[%clk 0:03:00]} 6. O-O {[%clk 0:02:59]}  Nf6 {[%clk 0:03:01]} 7. Nc3 {[%clk 0:02:51]}  b5 {[%clk 0:02:59]} 8. a3 {[%clk 0:02:50]}  Bb7 {[%clk 0:02:59]} 9. f3 {[%clk 0:02:35]}  d6 {[%clk 0:02:56]} 10. Kh1 {[%clk 0:02:35]}  Nbd7 {[%clk 0:02:56]} 11. Nb3 {[%clk 0:02:32]}  Be7 {[%clk 0:02:56]} 12. Be3 {[%clk 0:02:32]}  O-O {[%clk 0:02:55]} 13. Qe1 {[%clk 0:02:31]}  Ne5 {[%clk 0:02:55]} 14. Qf2 {[%clk 0:02:29]}  Nc4 {[%clk 0:02:53]} 15. Bg5 {[%clk 0:02:27]}  Nxb2 {[%clk 0:02:51]} 16. Rab1 {[%clk 0:02:26]}  Qc4 {[%clk 0:02:48]} 1-0


[Site "https://www.chess.com"]